{"text_format":"1","workbook":"xlsx","n_sheets":4,"sheets":["Orientation","Bilan","données","Menu"],"not_rendered":{"charts":0,"images":1,"macros":1,"external_links":0,"defined_names":42,"comments":0,"pivot_tables":0},"unopened":[],"bounds":{"document_bytes":16777216,"sheet_cells":100000,"rows_first":2000,"rows_last":500,"rows_between":2000,"halvings":0,"cell_chars":16384,"cell_head_chars":4096},"cells_cut":0,"cells_raw":0,"read":"whole","date_system":"1900"}

{"sheet":"Orientation","index":0,"n_rows":56,"n_cols":4,"rows_kept":56,"cut":false,"hidden":false,"merged":[[55,1,58,4],[1,1,1,4],[2,1,2,4],[49,1,50,4],[52,1,53,4],[18,0,18,4],[8,0,8,4],[33,0,33,4],[46,1,47,4],[40,1,43,4]]}
[]
[null,"FICHE DE LIAISON INSERTION 2025"]
[null,"Partie à compléter par le prescipteur"]
[]
["Non surligné :","saisie libre"]
[]
["Surligné jaune :","menu déroulant - merci de respecter les items proposés"]
[]
["PERSONNE ORIENTEE"]
[]
["Civilité ",null,null,"Commune de résidence  "]
[]
["Nom ",null,null,"N° tél "]
[]
["Prénom ",null,null,"Email "]
[]
["Né(é) le ",null,null,"Allocataire RSA \n*** INFORMATION INDISPENSABLE ***"]
[]
["PRESCRIPTEUR"]
[]
["Si le prescipteur est une CSS, merci de préciser :"]
["CSS ",null,null,"Site  CSS"]
[]
["Si le prescipteur n'est pas une CSS, merci de préciser :",null,null,"             En cas d'ALI, merci de préciser :"]
["Structure hors CSS",null,null,"ALI-territoire"]
[]
[]
["Nom",null,null,"N° tél "]
[]
["Prénom ",null,null,"Email"]
[]
["Fonction (CSS uniquement)"]
[]
["CHOIX DE L'ACTION/ORIENTATION"]
[]
["Date de la demande",null,null,"Thématique"]
[]
[null,null,null,"Nom de l'association"]
[]
[]
["Freins identifiés "]
[]
[]
[]
["Merci de renseigner au moins un objectif"]
[]
["Objectif 1"]
[]
[]
["Objectif 2"]
[]
[]
["Objectif 3"]
[]
[]
["Commentaires"]

{"sheet":"Bilan","index":1,"n_rows":55,"n_cols":4,"rows_kept":55,"cut":false,"hidden":false,"merged":[[37,0,38,0],[40,0,41,0],[55,0,61,3],[48,0,49,2],[48,3,49,3],[1,1,1,3],[2,1,2,3],[23,1,23,3],[51,0,52,2],[51,3,52,3],[31,0,31,2],[11,0,11,3],[21,0,21,3],[29,0,29,3],[43,0,43,3],[45,0,46,2],[45,3,46,3]]}
[]
[null,"FICHE DE LIAISON INSERTION 2025"]
[null,"Partie à compléter par l'association"]
[]
["Non surligné :","saisie libre",null,"ID fiche"]
[]
["Surligné gris :","données préremplies, ne pas saisir",null,{"$f":"(données!B2&\"_\"&données!C2&\"_\"&TEXT(données!R2,\"jj-mm-aaaa\")&\"_\"&données!T2)","v":"0_0_00-01-1900_0"}]
[]
["Surligné jaune :","menu déroulant - merci de respecter les items proposés"]
[]
[]
["PERSONNE ORIENTEE"]
[]
["Civilité ",{"$f":"Orientation!B11","v":0},"Commune de résidence  ",{"$f":"Orientation!E11","v":0}]
[]
["Nom ",{"$f":"Orientation!B13","v":0},"N° tél ",{"$f":"Orientation!E13","v":0}]
[]
["Prénom ",{"$f":"Orientation!B15","v":0},"Email ",{"$f":"Orientation!E15","v":0}]
[]
["Né(é) le ",{"$f":"Orientation!B17","v":"00:00:00"},"Allocataire RSA ",{"$f":"Orientation!E17","v":0}]
[]
["L'ASSOCIATION "]
[]
["Nom de l'association ",{"$f":"Orientation!E38","v":0}]
[]
["Nom/Prénom référent",null,"Fonction référent "]
[]
["Email référent",null,"N° tél référent"]
[]
["BILAN DE L'ORIENTATION"]
[]
["Si la prise en charge de l'usager n'a pas eu lieu, précisez la raison :"]
[]
[null,null,"Date de la demande",{"$f":"Orientation!B36","v":"00:00:00"}]
[]
["Date de début de l'action",null,"Date de fin de l'action"]
[]
["Nombre d'heures prévues",null,"heures"]
[null,null,"minutes"]
[]
["Nombre d'heures réalisées",null,"heures"]
[null,null,"minutes"]
[]
["Atteinte des objectifs"]
["Objectif 1",null,null,"Evaluation"]
[{"$f":"Orientation!B47","v":0}]
[]
["Objectif 2",null,null,"Evaluation"]
[{"$f":"Orientation!B50","v":0}]
[]
["Objectif 3",null,null,"Evaluation"]
[{"$f":"Orientation!B53","v":0}]
[]
[]
["Commentaires"]

{"sheet":"données","index":2,"n_rows":2,"n_cols":42,"rows_kept":2,"cut":false,"hidden":true,"merged":[]}
["Civilite","Nom_U","Prenom_U","Date_naissance","Commune_residence","Allocataire_RSA","Email_U","Tel_U","CSS","Site","Autre_prescripteur","ALI_territoire","Nom_prescr","Prenom_prescr","Email_prescr","Fonction_CSS","Tel_prescr","Date_demande","Thematique","Nom_association","Freins_identifies","Objectif_1","Objectif_2","Objectif_3","Commentaires_prescr","Motif","Nom_prenom_asso","Email_asso","Fonction_asso","Tel_asso","Date_demarrage_accomp","Date_fin_accomp","Nb_heures_prevues","Nb_min_prevues","Nb_heures_realisees","Nb_min_realisees","Eval_1","Eval_2","Eval_3","Commentaires_asso","annee_fiche_modele","ID_fiche"]
[{"$f":"Orientation!B11","v":0},{"$f":"Orientation!B13","v":0},{"$f":"Orientation!B15","v":0},{"$f":"Orientation!B17","v":"00:00:00"},{"$f":"Orientation!E11","v":0},{"$f":"Orientation!E17","v":0},{"$f":"Orientation!E15","v":0},{"$f":"Orientation!E13","v":0},{"$f":"Orientation!B22","v":0},{"$f":"Orientation!E22","v":0},{"$f":"Orientation!B25","v":0},{"$f":"Orientation!E25","v":0},{"$f":"Orientation!B28","v":0},{"$f":"Orientation!B30","v":0},{"$f":"Orientation!E30","v":0},{"$f":"Orientation!B32","v":0},{"$f":"Orientation!E28","v":0},{"$f":"Orientation!B36","v":"00:00:00"},{"$f":"Orientation!E36","v":0},{"$f":"Orientation!E38","v":0},{"$f":"Orientation!B41","v":0},{"$f":"Orientation!B47","v":0},{"$f":"Orientation!B50","v":0},{"$f":"Orientation!B53","v":0},{"$f":"Orientation!B56","v":0},{"$f":"Bilan!D32","v":0},{"$f":"Bilan!B26","v":0},{"$f":"Bilan!B28","v":0},{"$f":"Bilan!D26","v":0},{"$f":"Bilan!D28","v":0},{"$f":"Bilan!B36","v":"00:00:00"},{"$f":"Bilan!D36","v":"00:00:00"},{"$f":"Bilan!B38","v":0},{"$f":"Bilan!B39","v":0},{"$f":"Bilan!B41","v":0},{"$f":"Bilan!B42","v":0},{"$f":"Bilan!D46","v":0},{"$f":"Bilan!D49","v":0},{"$f":"Bilan!D52","v":0},{"$f":"Bilan!A56","v":0},2025,{"$f":"Bilan!D7","v":"0_0_00-01-1900_0"}]

{"sheet":"Menu","index":3,"n_rows":51,"n_cols":13,"rows_kept":51,"cut":false,"hidden":true,"merged":[]}
["Civilité","RSA","Affecté sur la CSS de","Site CSS","Fonction","Thématique","Nom de l'association","Ville","evaluation","motif non prise en charge","Prescripteur hors CSS","ALI- territoire","Porteur ALI"]
["Monsieur","Oui","Aubervilliers","Clichy","AS","Accès_aux_droits","Association de conseil et d'insertion ACI","AUBERVILLIERS","Tout à fait atteint","action / dispositif complet","Agence locale d'insertion (ALI)","Aubervilliers","ARES"]
["Madame","Non","Aulnay_sous_bois","Montfermeil_Coubron","CESF","Accompagnement_socio_professionnel","Grdr Migration Citoyenneté Développement ","AULNAY-SOUS-BOIS","Plutôt atteint","usager injoignable","2M Solidaire ","Aulnay sous bois ","Vitamine T"]
[null,"En cours","Bagnolet","Dugny_Le_Bourget","CISP","Culture_séjour_et_sports","UNRPA 75","BAGNOLET","Plutôt pas atteint","absence d'adhésion","82 4000 Solidaires","Bagnolet-Le pré-Les Lillas","ARES"]
[null,null,"Bobigny","Le_Blanc_Mesnil","EAN","Renforcement_de_l_estime_de_soi","82 4000 Solidaires","LE BLANC-MESNIL","Pas du tout atteint","indisponible pour l'action","ADEPT","Bobigny","Croix rouge insertion"]
[null,null,"Bondy","Epinay_sur_Seine","AA","Santé_santé_psy","ASSOCIATION AURORE ","BOBIGNY",null,"autre (précisez en commentaire en fin de page)","ASSOCIATION AURORE ","Bondy","Croix rouge insertion"]
[null,null,"Clichy_Montfermeil_Coubron","Villetaneuse","Centralisée","Socio_linguistique","ECHO DES SANS MOT","BONDY",null,null,"Association de conseil et d'insertion ACI","Clichy sous bois / Coubron/Montfermeil","GPGE"]
[null,null,"Drancy","Livry_Gargan_Vaujours",null,"Vie_quotidienne","Écouter réfléchir agir","LE BOURGET",null,null,"ASSOCIATION JOLI MONDE ","Drancy","Vitamine T"]
[null,null,"Dugny_Le_Bourget_Le_Blanc_Mesnil","Pavillons",null,null,"Etonnant cinéma","CLICHY-SOUS-BOIS",null,null,"Artis Multimédia","Dugny/Le Bourget/ Le Blanc Ménil","CASP"]
[null,null,"Epinay_sur_Seine_Villetaneuse","Villemomble_Le_Raincy",null,null,"Etudes et chantiers Ile de France","COUBRON",null,null,"Association Pas si loin ","Epinay sur Seine / Villetaneuse","SFMAD"]
[null,null,"Neuilly_Plaisance_Neuilly_sur_Marne_Gagny ","Rosny",null,null,"FSGT 93 ","LA COURNEUVE",null,null,"Association préfiguration de la Regie des quartiers de Saint Ouen ","Neuilly-Plaisance / Neuilly sur Marne/ Gagny ","Germinal/Groupe SOS"]
[null,null,"La_Courneuve","Pierrefitte",null,null,"ORPHANCO","DRANCY",null,null,"BOMOYI","La courneuve","C2DI"]
[null,null,"Les_Lilas_Le_Pré","Stains",null,null,"Sens de l'Humus","DUGNY",null,null,"Centre communal d'action social de Noisy le Sec","Bagnolet-Le pré-Les Lillas","ARES"]
[null,null,"Livry_Gargan_Vaujours_Pavillons","Romainville",null,null,"2M Solidaire ","EPINAY-SUR-SEINE",null,null,"Centre d'info droits des femmes et familles de SSD","Livry-Gargan/ Pavillons/ Vaujours ","Aurore"]
[null,null,"Montreuil","Noisy_le_Sec",null,null,"Artis Multimédia","GAGNY",null,null,"Compagnons Bâtisseurs IDF","Montreuil","Aurore"]
[null,null,"Noisy_le_Grand_Gournay_sur_Marne","Saint_Ouen",null,null,"Emmaus Solidarité","GOURNAY-SUR-MARNE",null,null,"Crésus","Noisy le Grand / Gournay sur Marne ","Germinal/Groupe SOS"]
[null,null,"Pantin","Ile_Saint_Denis",null,null,"FRANCE BENEVOLAT 93","L'ILE-SAINT-DENIS",null,null,"Dans ma petite cuisine","Pantin","GIP Ville de Pantin"]
[null,null,"Pierrefitte_Stains","Tremblay_en_France",null,null,"Fun etre sur l'ile ","LES LILAS",null,null,"Du Pain & des roses ","Pierrefitte/Stains","PLIE de Plaine Commune"]
[null,null,"Romainville_Noisy_le_Sec","Villepinte",null,null,"Groupe SOS Solidarités CAARUD Yucca","LIVRY-GARGAN",null,null,"ECHO DES SANS MOT","Romainville / Noisy-le-Sec","Ville de Romainville/CCAS Noisy-le-Sec"]
[null,null,"Saint_Denis","Aubervilliers",null,null,"Joséphine ","MONTFERMEIL",null,null,"Écouter réfléchir agir","Saint-Denis","Objectif emploi"]
[null,null,"Saint_Ouen_Ile_Saint_Denis","Aulnay_sous_bois",null,null,"LA CONTREMARQUE","MONTREUIL",null,null,"Emmaus Solidarité","Saint-Ouen/Ile Saint Denis","ARES"]
[null,null,"Sevran","Bagnolet",null,null,"Noisy Liens","NEUILLY-PLAISANCE",null,null,"Etonnant cinéma","Sevran ","Compétances Emploi"]
[null,null,"Tremblay_en_France_Villepinte","Bobigny",null,null,"EPOC","NEUILLY-SUR-MARNE",null,null,"Etudes et chantiers Ile de France","Tremblay en France / Villepinte","Vitamine T"]
[null,null,"Villemomble_Le_Raincy_Rosny","Bondy",null,null,"IRIS MESSIDOR ","NOISY-LE-GRAND",null,null,"EPOC","Villemomble/ Le Raincy / Rosny","Aurore"]
[null,null,"CSSAPE","Drancy",null,null,"LE CABINET ASSOCIATIF ","NOISY-LE-SEC",null,null,"FRANCE BENEVOLAT 93"]
[null,null,"SSD_Central","Neuilly_Plaisance_Neuilly_sur_Marne_Gagny ",null,null,"SAMPS","PANTIN",null,null,"FIT Une femme un toit"]
[null,null,null,"La_Courneuve",null,null,"Soutien Insertion Santé","PAVILLONS-SOUS-BOIS",null,null,"FSGT 93 "]
[null,null,null,"Les_Lilas_Le_Pré",null,null,"UNIRH75","PIERREFITTE",null,null,"Fun etre sur l'ile "]
[null,null,null,"Montreuil",null,null,"ADEPT","LE PRE-SAINT-GERVAIS",null,null,"Grdr Migration Citoyenneté Développement "]
[null,null,null,"Noisy_le_Grand_Gournay_sur_Marne",null,null,"Association Pas si loin ","LE RAINCY",null,null,"Groupe SOS Solidarités CAARUD Yucca"]
[null,null,null,"Pantin",null,null,"Association préfiguration de la Regie des quartiers de Saint Ouen ","ROMAINVILLE",null,null,"Habitat Cité"]
[null,null,null,"Saint_Denis",null,null,"Centre communal d'action social de Noisy le Sec","ROSNY-SOUS-BOIS",null,null,"IRIS MESSIDOR "]
[null,null,null,"Sevran",null,null,"Centre d'info droits des femmes et familles de SSD","SAINT-DENIS",null,null,"Joséphine "]
[null,null,null,"CSSAPE",null,null,"Du Pain & des roses ","SAINT-OUEN",null,null,"La Cravate Solidaire Paris"]
[null,null,null,"SSD_Central",null,null,"La Cravate Solidaire Paris","SEVRAN",null,null,"LA CONTREMARQUE"]
[null,null,null,null,null,null,"LA FABRIK","STAINS",null,null,"LA FABRIK"]
[null,null,null,null,null,null,"La fabrique de l'espoir FABLAB#Montreuil solidaire ","TREMBLAY-EN-FRANCE",null,null,"La fabrique de l'espoir FABLAB#Montreuil solidaire "]
[null,null,null,null,null,null,"Les Jardins Numériques ","VAUJOURS",null,null,"LE CABINET ASSOCIATIF "]
[null,null,null,null,null,null,"FIT Une femme un toit","VILLEMOMBLE",null,null,"\u0081\u0082\u0083\u0084\u0085\u0081\u0082\u0083\u0084\u0082\u0086\u0087\u0086\u0082\u0083\u0082\u0088\u0089\u008a\u0088\u008b\u0082\u0083\u008c\u0083\u0081\u0082\u0083\u0084\u0085\u0084Le Pole Petite Enfance - Le Pope"]
[null,null,null,null,null,null,"Compagnons Bâtisseurs IDF","VILLEPINTE",null,null,"Les Jardins Numériques "]
[null,null,null,null,null,null,"Crésus","VILLETANEUSE",null,null,"Noisy Liens"]
[null,null,null,null,null,null,"Dans ma petite cuisine","PARIS",null,null,"NOUVEL HORIZON"]
[null,null,null,null,null,null,"\u0081\u0082\u0083\u0084\u0085\u0081\u0082\u0083\u0084\u0082\u0086\u0087\u0086\u0082\u0083\u0082\u0088\u0089\u008a\u0088\u008b\u0082\u0083\u008c\u0083\u0081\u0082\u0083\u0084\u0085\u0084Le Pole Petite Enfance - Le Pope","HAUTS-DE-SEINE (92)",null,null,"ORPHANCO"]
[null,null,null,null,null,null,"Pour un droit à l'emploi à Pantin","VAL-DE-MARNE (94)",null,null,"Pour un droit à l'emploi à Pantin"]
[null,null,null,null,null,null,"Vivre Ensemble","SEINE-ET-MARNE (77)",null,null,"SAMPS"]
[null,null,null,null,null,null,"ASSOCIATION JOLI MONDE ","YVELINES (78)",null,null,"Sens de l'Humus"]
[null,null,null,null,null,null,"BOMOYI","ESSONNE (91)",null,null,"Soutien Insertion Santé"]
[null,null,null,null,null,null,"Habitat Cité","VAL D'OISE (95)",null,null,"UNIRH75"]
[null,null,null,null,null,null,"NOUVEL HORIZON",null,null,null,"UNRPA 75"]
[null,null,null,null,null,null,null,null,null,null,"Vivre Ensemble"]
[null,null,null,null,null,null,null,null,null,null,"France Travail"]